Cogmind - Beta 16 @@@ ROGUE MODE // 2025.10.25 @ 19:54:34 Player: Gilvian Result: Destroyed by exploding Fusion Modulator Performance ------------- Evolutions (1) 500 Regions Visited (2) 400 Robots Destroyed (30) 150 Value Destroyed (763) 763 Prototype IDs (2) 40 Alien Tech Used (0) 0 Bonus (0) 0 TOTAL SCORE: 1853 Bonus ------- None Cogmind --------- Core Integrity 0/400 Matter 298/300 Energy 350/350 System Corruption 0% Temperature Cool (24) Movement Walking (105) Location -9/Materials Parts ------- > --- POWER (1) -------- (None) > --- PROPULSION (2) --- Aluminum Leg > --- UTILITY (4) ------ Small Storage Unit High-capacity Battery Improved Targeting Computer > --- WEAPON (2) ------- (None) > --- INVENTORY (8) ---- Aluminum Leg Large Storage Unit Melee Analysis Suite Medium Armor Plating Peak State ------------ > --- POWER ------------ Light Ion Engine > --- PROPULSION ------- Aluminum Leg Aluminum Leg > --- UTILITY ---------- Small Storage Unit High-capacity Battery Improved Targeting Computer Core Shielding > --- WEAPON ----------- Small Laser Particle Gun > --- INVENTORY -------- Large Storage Unit Melee Analysis Suite Medium Armor Plating [Rating: 11] Favorites ----------- Power Ion Engine Engine Ion Engine Propulsion Aluminum Leg Leg Aluminum Leg Utility Small Storage Unit Storage Small Storage Unit Processor Improved Targeting Computer Protection Core Shielding Weapon Light Assault Rifle Energy Gun Small Laser Ballistic Gun Light Assault Rifle Launcher Grenade Launcher Special Weapon Plasma Cutter Build | -11 -10 -9 ------- Run | Yrd Mat Mat Slots Evolved 2 | . . 2 Power . | . . . Propulsion . | . . . Utility 2 | . . 2 Weapon . | . . . Parts Attached 25 | 5 3 17 Power 2 | 1 . 1 Engine 2 | 1 . 1 Core . | . . . Reactor . | . . . Propulsion 8 | 2 . 6 Treads . | . . . Leg 8 | 2 . 6 Wheel . | . . . Hover . | . . . Flight . | . . . Utility 5 | 1 1 3 Device . | . . . Storage 2 | 1 . 1 Processor 1 | . . 1 Hackware . | . . . Protection 2 | . 1 1 Artifact . | . . . Weapon 10 | 1 2 7 Energy Gun 3 | . . 3 Energy Cannon . | . . . Ballistic Gun 4 | 1 1 2 Ballistic Cannon . | . . . Launcher 2 | . 1 1 Special Weapon 1 | . . 1 Impact Weapon . | . . . Slashing Weapon . | . . . Piercing Weapon . | . . . Special Melee Weapon . | . . . Unidentified Prototypes . | . . . Parts Lost 13 | . 1 12 Power 2 | . 1 1 Propulsion 3 | . . 3 Utility 1 | . . 1 Weapon 7 | . . 7 Highest Loss Streak 3 | . 1 3 To Critical Strikes . | . . . Average Backups 3 | . 3 5 Power . | . . . Propulsion . | . . . Utility 2 | . 2 3 Weapon . | . . . Tool/Special . | . . . Unused Backups 2 | . . 2 Power . | . . . Propulsion . | . . . Utility 2 | . . 2 Weapon . | . . . Tool/Special . | . . . Average Slot Usage (%) 82 | . 86 77 Engine 5 | . 8 1 Leg 25 | . 28 21 Storage 16 | . 14 19 Processor 3 | . . 6 Protection 9 | . 10 9 Energy Gun 2 | . . 5 Ballistic Gun 13 | . 17 7 Launcher 5 | . 6 4 Peak Build Rating 11 | 5 7 11 Average Rating 7 | 2 6 8 On Entrance 3 | . 5 6 Avg Prop Armor Cover (%) . | . . . Naked Turns . | . . . Heaviest Build 22 | 11 15 22 Greatest Support 20 | 20 20 20 Greatest Overweight (x) 1 | . . 1 Average Overweight (x) . | . . . Largest Inventory Capacity 8 | 8 8 8 Average Capacity 7 | 5 8 8 Most Carried 8 | 4 6 8 Average Carried 4 | . 3 5 Final Capacity 8 | 8 8 8 Final Carried 6 | . 6 4 Class Distribution -------------------- 88% | Mutant 11% | Scavenger-Mutant Dominant Class ---------------- Mutant | -10/Materials Mutant | -9/Materials Resources | -11 -10 -9 ----------- Run | Yrd Mat Mat Matter Collected 596 | 228 106 262 Remotely . | . . . Salvage Created 763 | . 119 644 Parts 62 | . 14 48 Haulers Intercepted . | . . . Recyclers Shooed 1 | . . 1 Parts Field Recycled . | . . . Retrieved Matter . | . . . Parts Self-Destructed . | . . . Prevented . | . . . Parts Restored . | . . . Kills | -11 -10 -9 ------- Run | Yrd Mat Mat Combat Hostiles Destroyed 26 | . 7 19 Guns 15 | . 4 11 Cannons 1 | . . 1 AOE 10 | . 3 7 Classes Destroyed 7 | . 3 4 Worker 1 | . . 1 Tunneler 1 | . . 1 Watcher 2 | . 1 1 Swarmer 11 | . 5 6 Grunt 10 | . 2 8 Duelist 1 | . . 1 Sentry 4 | . . 4 Best Kill Streak 5 | . 3 5 Combat Bots Only 5 | . 3 5 Max Kills in Single Turn 4 | . 1 4 Gunslinging . | . . . Exploded 4 | . 1 4 Melee . | . . . Uniques/NPCs Destroyed . | . . . Combat | -11 -10 -9 -------- Run | Yrd Mat Mat Hostile Shots Fired 166 | . 49 117 Missed 53 | . 13 40 Hits 113 | . 36 77 Melee 6 | . . 6 Projectile 107 | . 36 71 AOE 1 | . . 1 Critical Strikes 3 | . 1 2 Actively Blocked 1 | . . 1 Damage Taken 1724 | . 350 1374 Core 499 | . 67 432 Absorbed by Shields . | . . . Redirected to Shielding 51 | . 5 46 Regen/Repaired (Parts) 57 | . . 57 Core Remaining (%) 86 | 100 73 . Volleys Fired 113 | . 32 81 Largest 2 | . 2 2 Hottest 105 | . 40 105 Shots Fired 136 | . 35 101 Gun 116 | . 29 87 Cannon . | . . . Launcher 10 | . 6 4 Special 10 | . . 10 Kinetic 79 | . 29 50 Thermal 47 | . . 47 Explosive 10 | . 6 4 Electromagnetic . | . . . Robot Hit Streak 16 | . 5 16 Robot Miss Streak 5 | . 5 4 Penetration Max . | . . . Secondary Targets . | . . . Shots Hit Robots 92 | . 14 78 Core Hits 50 | . 13 37 Critical Kills . | . . . Critical Parts Destroyed . | . . . Critical Strikes . | . . . Melee Attacks . | . . . Impact . | . . . Slashing . | . . . Piercing . | . . . Sneak Attacks . | . . . Combat Hostiles . | . . . Follow-up Attacks . | . . . Damage Inflicted 1414 | . 312 1102 Guns 719 | . 85 634 Cannons . | . . . Explosions 616 | . 227 389 Melee . | . . . Ramming . | . . . Kinetic 392 | . 85 307 Thermal 406 | . . 406 Explosive 616 | . 227 389 Electromagnetic . | . . . Impact . | . . . Slashing . | . . . Piercing . | . . . Highest Corruption . | . . . Average Corruption . | . . . Corruption Purged . | . . . Corruption Blocked . | . . . Overload Shots . | . . . Overflow Damage 21 | . . 21 Projectiles . | . . . Explosions 21 | . . 21 Melee . | . . . Knockbacks . | . . . Impact . | . . . Kinetic . | . . . Secondary . | . . . Self-Inflicted Damage 34 | . . 34 Shots 2 | . . 2 Rammed . | . . . Targets Rammed . | . . . Kicked . | . . . Crushed . | . . . Highest Temperature 198 | . 17 198 Average Temperature 73 | . 10 76 Received Heat Transfer 498 | . 45 453 Siege Activations . | . . . Martial Activations . | . . . Shielding Activations . | . . . Robots Disrupted . | . . . Combat Hostiles . | . . . Robots Corrupted . | . . . Combat Hostiles . | . . . Parts Fried . | . . . Impact Corruptions . | . . . Robots Melted . | . . . Combat Hostiles . | . . . Parts Melted 1 | . . 1 Heat Transferred 1031 | . . 1031 Parts Sabotaged . | . . . Parts Stolen . | . . . Parts Stripped . | . . . Power Chain Reactions . | . . . Alert | -11 -10 -9 ------- Run | Yrd Mat Mat Maximum Alert Level 1 | . . 1 Low Security (%) 81 | 100 100 57 Level 1 18 | . . 42 Level 2 . | . . . Level 3 . | . . . Level 4 . | . . . Level 5 . | . . . High Security . | . . . Max Security . | . . . Peak Influence 258 | . 186 258 Initial . | . . . Average 87 | . 26 164 Influence Increases 860 | . 259 601 Destroy 0b10 Robot/C 520 | . 140 380 Destroy 0b10 Robot/NC 20 | . 5 15 Destroy Leader 104 | . 22 82 Successful Hack 12 | . 2 10 Disable Machine 30 | . 30 . Destroy Structure 54 | . 15 39 Partial Spotted 30 | . 15 15 Lose Combat Pursuer 90 | . 30 60 Influence Decreases 674 | . 259 415 Time Decay 404 | . 109 295 Lost Part 120 | . . 120 Purge Threat 150 | . 150 . Squads Dispatched 1 | . . 1 Investigation . | . . . Extermination . | . . . Reinforcement 1 | . . 1 Assault . | . . . Garrison . | . . . Intercept . | . . . Searches Triggered . | . . . Construction Impeded . | . . . Haulers Reinforced . | . . . Active Scanning Responses . | . . . Cargo Convoy Interrupts . | . . . Stealth | -11 -10 -9 --------- Run | Yrd Mat Mat Distress Signals 4 | . 2 2 Communications Jammed . | . . . Distress Signals . | . . . Times Spotted 51 | . 12 39 Peak Tracking Total 6 | . 6 6 Tactical Retreats 4 | . 1 3 Traps | -11 -10 -9 ------- Run | Yrd Mat Mat Traps Triggered 1 | . 1 . Indirectly . | . . . Trap Hack Attempts . | . . . Triggered . | . . . Disarmed . | . . . Reprogrammed . | . . . Reused . | . . . Traps Extracted . | . . . Installed . | . . . Triggered . | . . . Machines | -11 -10 -9 ---------- Run | Yrd Mat Mat Machines Disabled 2 | . 2 . Max in Single Turn 1 | . 1 . Machines Repaired . | . . . Machines Dismantled . | . . . Machines Sabotaged . | . . . Overloaded Fab Kills . | . . . Hacking | -11 -10 -9 --------- Run | Yrd Mat Mat Machines Accessed 15 | . 8 7 Terminals 11 | . 6 5 Fabricators . | . . . Repair Stations 1 | . . 1 Recycling Units 2 | . 2 . Scanalyzers 1 | . . 1 Garrison Access . | . . . Total Hacks 34 | . 15 19 Successful 23 | . 8 15 Failed 11 | . 7 4 Catastrophic . | . . . Database Lockouts . | . . . Manual . | . . . Terminals 24 | . 12 12 Fabricators . | . . . Repair Stations 3 | . . 3 Recycling Units 3 | . 3 . Scanalyzers 4 | . . 4 Garrison Access . | . . . Terminal Hacks 16 | . 7 9 Record 9 | . 4 5 Prototype ID Bank 1 | . 1 . Emergency Access Points 1 | . . 1 Alert Level 1 | . 1 . Unreport Threat 1 | . 1 . Locate Traps 1 | . . 1 Hauler Manifests 1 | . . 1 Zone Layout 1 | . . 1 Fabricator Hacks . | . . . Repair Station Hacks 2 | . . 2 Scan Component 1 | . . 1 Repair 1 | . . 1 Recycling Unit Hacks 1 | . 1 . Report Inventory 1 | . 1 . Scanalyzer 4 | . . 4 Insert Component 1 | . . 1 Analyze 1 | . . 1 Retrieve Study 2 | . . 2 Garrison Access Hacks . | . . . Unauthorized Hacks . | . . . Terminals . | . . . Fabricators . | . . . Repair Stations . | . . . Recycling Units . | . . . Scanalyzers . | . . . Garrison Access . | . . . Data Cores Recovered . | . . . Used . | . . . Hacking Detections 11 | . 6 5 Full Trace Events . | . . . Feedback Events . | . . . Feedback Blocked . | . . . Robot Schematics Acquired . | . . . Robots Built . | . . . Authchips . | . . . Time . | . . . Total Robot Build Rating . | . . . Part Schematics Acquired 1 | . . 1 Parts Built . | . . . Authchips . | . . . Time . | . . . Total Part Build Rating . | . . . Part Studies Acquired 2 | . . 2 Parts Repaired 1 | . . 1 Time 32 | . . 32 Parts Recycled . | . . . Recycled Matter . | . . . Retrieved Matter . | . . . Retrieved Components . | . . . Parts Scanalyzed 1 | . . 1 Part Schematics Acquired 1 | . . 1 Parts Damaged . | . . . Bothacking | -11 -10 -9 ------------ Run | Yrd Mat Mat Used RIF Installer . | . . . Robots Hacked . | . . . Non-combat . | . . . Combat . | . . . Robot Hacks Applied . | . . . Relay Couplers Released . | . . . Fabnet Peak Effective % . | . . . Robots Rewired . | . . . Allies Hacked . | . . . Hacks Repelled . | . . . Allies | -11 -10 -9 -------- Run | Yrd Mat Mat Total Allies . | . . . Largest Group . | . . . Highest-Rated Group . | . . . Highest-Rated Ally . | . . . Total Orders . | . . . Ally Attacks . | . . . Total Damage . | . . . Kills . | . . . Allies Corrupted . | . . . Allies Melted . | . . . Intel | -11 -10 -9 ------- Run | Yrd Mat Mat Active Infowar (turns) . | . . . Robot Analysis Total . | . . . Derelict Logs Recovered . | . . . Drone Launches . | . . . Drone Recoveries . | . . . Exploration | -11 -10 -9 ------------- Run | Yrd Mat Mat Turns Passed 1762 | 49 925 788 Spaces Moved 1220 | 44 706 470 Core 19 | 19 . . Treads . | . . . Legs 1201 | 25 706 470 Wheels . | . . . Hover . | . . . Flight . | . . . Fastest Speed 50 | 50 120 105 Average Speed 117 | 89 120 115 Slowest Speed 190 | 120 120 190 Overloaded Moves . | . . . Propulsion Burnouts . | . . . Robots Hopped . | . . . Potential Cave-ins . | . . . Cave-ins Triggered . | . . . Exploration Rate (%) 43 | 4 84 42 Regions Visited 2 Branch Regions . Pre-discovered Areas . | . . . Known Exits Taken . | . . . Unknown Exits Taken 2 | 1 1 . Scrap Searched . | . . . Spaces Dug . | . . . Terrain Destroyed 69 | . 17 52 Melee . | . . . Projectile . | . . . AOE 69 | . 17 52 Terrain Rammed . | . . . Walls Destroyed . | . . . Machines Disabled . | . . . Actions | -11 -10 -9 --------- Run | Yrd Mat Mat Total 1421 | 53 754 614 Wait 29 | . 4 25 Move 1218 | 43 705 470 Hop . | . . . Pick Up 26 | 5 8 13 Fast Attach . | . . . Attach 20 | 5 3 12 Detach 2 | . 1 1 Swap 6 | . 1 5 Drop 6 | . . 6 Fire 113 | . 32 81 Melee . | . . . Ram . | . . . Kick . | . . . Crush . | . . . Escape Stasis . | . . . Rewire . | . . . Trap . | . . . Miscellaneous 1 | . . 1 Route ------- -11/Scrapyard -10/Materials (discovered 4 exits: *Mat x3 / [*Min]) -9/Materials (discovered 1 exit: [*Mat]) History --------- Turn | Location | Event 2 | -11/Scrapyard | Met Revision 17 6 | -11/Scrapyard | Discovered new exit (range 15) 50 | -11/Scrapyard | Entered Materials 51 | -10/Materials | Met a group of wandering Federalists 101 | -10/Materials | Discovered new exit (range 9) 319 | -10/Materials | Build established: Mutant 346 | -10/Materials | Discovered new exit (range 7) 505 | -10/Materials | Discovered new exit (range 11) 672 | -10/Materials | Discovered new exit (range 15) 975 | -10/Materials | Entered another Materials area 975 | -9/Materials | Evolved 2 slots: Utility x2 1230 | -9/Materials | Discovered new exit (range 16) 1351 | -9/Materials | Repaired Rocket Launcher 1405 | -9/Materials | Lost 3 parts (1n2w) 1533 | -9/Materials | Lost 3 parts (1n2w) 1623 | -9/Materials | Core integrity fell below 50% 1645 | -9/Materials | Core integrity fell below 20% 1678 | -9/Materials | Lost 3 parts (1p1u1w) 1763 | -9/Materials | Destroyed by exploding Fusion Modulator Last Messages --------------- Downloaded map data. G-34 Mercenary destroyed. R-06 Scavenger collects Aluminum Leg+. G-34 Mercenary destroyed. Particle Gun destroyed. Core Shielding destroyed. Lgt. Ion Engine destroyed. L-31 Rogue destroyed. O-16 Technician: "IFF HANDSHAKE FAILED. SECURING TERMINAL." ALERT: Hostiles spotted, dispatching reinforcements to Terminal M007. Sml. Laser destroyed. Y-45 Defender destroyed. Fusion Modulator explodes. U-05 Engineer destroyed. Aluminum Leg+ destroyed. Fusion Modulator explodes. W-16 Scout destroyed. Lgt. Assault Rifle+ destroyed. Map ----- +----------------------------------------------------+ | ??????????????# #?#########+###??????????? | | ??????????????########+##???####### #????????????? | | ???????????????????? #?????????# #????????????? | | ?????????????????? #?????????# ####?????????? | | ???????????????? #?????????# #########?? | | ???????????????# " #???########## ## #?? | | ???????????????# "" #???# #?## ## """ #?? | | ???????????????# "" ### # """ #?? | | ???????????????# + """ #?? | | ???????????????# ### # % #?? | | ???????????????# ########## #?## ## "T" #?? | | ???????????????# ?????????###+###### ##+######## | | ???????????????# ????????? ## % + | | ???????????????# ?????????? """"" ## # "" | | ???????????????# ?????????? """"" ## # "" | | ???????????????????????????? """"" + + "" | | ???????????????????????????? ##+##+## # | | ????????????????????######## # %## # | | ????????????????????# # ""T"" # """ ## ###+# | | ????????????????????# """ # """"" # """ ## #?# # | | ????????????????????# """ # # """ ## ###+# | | ????????????????????# """ ########## """ + + | | ??????????????# ???+ #????????# """ ## # | | ??????????????# # ###??????# ## # | | ??????????????# ] ; #???########### + | | ???????????????????#; @ ; #???# # # | | ???????????????????# ; #???# # # | | ???????????????? ; ; #??# # ##### | | ???????????? #; ! ; #??# # #???? | | ??????????? ??#; *[;;#########+##### #???? | | ???????????? ?????#; ! %;= #???? | | ???????????????????#;;;;;;;;;#################???? | | ??????????????????? *=; #???????????????????? | | ??????????????????########%###???????????????????? | | ?????????????????????????#=#?????????????????????? | | ?????????????????????????# #?????????????????????? | | ?????????????????????????# #?????????????????????? | | ?????????????????????????# #?????????????????????? | | ?????????????????????????# #?????????????????????? | | ?????????????????????????? ??????????????????????? | | ?????????????????????????? ??????????????????????? | | ?????????????????????????? ??????????????????????? | | ?????????????????????????? ??????????????????????? | | ?????????????????????????? ??????????????????????? | | ?????????????????????????? ??????????????????????? | | ??????????????????????????+??????????????????????? | | ?????????????????????????????????????????????????? | | ?????????????????????????????????????????????????? | | ?????????????????????????????????????????????????? | | ?????????????????????????????????????????????????? | +----------------------------------------------------+ Best States ------------- Heat Dissipation 28 Energy Generation 10 Energy Capacity 375 Matter Stores 300 Matter Capacity 300 Sight Range 16 Terrain Scan Density 10 Core Shielding 20 Evasion (%) 55 Targeting Accuracy 6 Item Schematics ----------------- Melee Analysis Suite | -9/Materials | Scanalyzed Robot Schematics ------------------ None Fabricated ------------ Nothing Repaired ---------- Rocket Launcher | 18% | -9/Materials Studied --------- Aluminum Leg | -9/Materials | Hacked Lgt. Assault Rifle | -9/Materials | Hacked Alien Tech Used ----------------- None Achievements -------------- DATA ERROR: Steam Global Achievement% Hydra Item+ Organ Harvest Resistances Are Futile That Tickles There's More Where That Came From You Again Challenges ------------ None Game ------ Seed SystemPointArticulator Manual? 0 Play Time 00:27:57 Cumulative 7.6 hours Start 2025.10.25 @ 18:58:32 End 2025.10.25 @ 19:54:34 Sessions 1 Manual Loads 0 Difficulty Rogue Special Mode None Game No. 24 Rogue 24 Adventurer 0 Explorer 0 Win Type - Total 0 Types 0/0/0/0/0/0/0/0/0/0 Lore% 2 Gallery% 10 Achievement% 9 Wizard Run 0 Options --------- Layout 1 ASCII 0 Keyboard 0 Movement Numpad Keybinds 0 Fullscreen 1 Font 24/Smallcaps Map View 50x35 Zoom Use 0% Tactical HUD 0 Map Filters NONE Filters NONE Steam 1 RUN: 60a30001-8991-4a1b-a527-e0cce4addb80